fUSD/lending_fUSD_20240113
["ID","MTS","AMOUNT","RATE_DAILY","PERIOD"]
[311518450,1705173053135,-500.0,0.00022186,2]
[311518451,1705173053144,-500.0,0.00022186,2]
[311518452,1705173053153,-500.0,0.00022186,2]
[311518453,1705173053162,-500.0,0.00022186,2]
[311518454,1705173053172,-500.0,0.00022186,2]
[311518455,1705173053181,-434.5,0.00022186,2]
[311518456,1705173053191,-500.0,0.00022186,2]
[311518457,1705173053202,-500.0,0.00022186,2]
[311518458,1705173053213,-500.0,0.00022186,2]
[311518459,1705173053223,-500.0,0.00022186,2]
[311518460,1705173053232,-500.0,0.00022186,2]
[311518461,1705173053241,-500.0,0.00022186,2]
[311518462,1705173053251,-500.0,0.00022186,2]
[311518463,1705173053260,-500.0,0.00022186,2]
[311518464,1705173053269,-500.0,0.00022186,2]
[311518465,1705173053280,-500.0,0.00022186,2]
[311518466,1705173053290,-500.0,0.00022186,2]
[311518467,1705173053299,-500.0,0.00022186,2]
[311518468,1705173053309,-500.0,0.00022186,2]
[311518469,1705173053318,-500.0,0.00022186,2]
[311518470,1705173053327,-500.0,0.00022186,2]
[311518471,1705173053336,-500.0,0.00022186,2]
[311518472,1705173053345,-500.0,0.00022186,2]
[311518473,1705173053355,-500.0,0.00022186,2]
[311518474,1705173053364,-500.0,0.00022186,2]
[311518475,1705173053373,-500.0,0.00022186,2]
[311518476,1705173053385,-513.67310843,0.00022186,2]
[311518477,1705173053395,-250.0,0.00022186,2]
[311518478,1705173053404,-500.0,0.00022186,2]
[311518479,1705173053414,-500.0,0.00022186,2]
[311518480,1705173053423,-500.0,0.00022186,2]
[311518481,1705173053432,-500.0,0.00022186,2]
[311518482,1705173053442,-500.0,0.00022186,2]
[311518483,1705173053452,-500.0,0.00022186,2]
[311518484,1705173053462,-591.36568851,0.00022186,2]
[311518485,1705173053472,-500.0,0.00022186,2]
[311518486,1705173053481,-500.0,0.00022186,2]
[311518487,1705173053491,-500.0,0.00022186,2]
[311518488,1705173053500,-500.0,0.00022186,2]
[311518489,1705173053509,-510.86771685,0.00022186,2]
[311518490,1705173053519,-500.0,0.00022186,2]
[311518491,1705173053529,-500.0,0.00022186,2]
[311518492,1705173053538,-500.0,0.00022186,2]
[311518493,1705173053547,-500.0,0.00022186,2]
[311518494,1705173053557,-500.0,0.00022186,2]
[311518495,1705173053566,-500.0,0.00022186,2]
[311518496,1705173053576,-539.24895076,0.00022186,2]
[311518497,1705173053586,-500.0,0.00022186,2]
[311518498,1705173053595,-500.0,0.00022186,2]
[311518499,1705173053606,-500.0,0.00022186,2]
[311518500,1705173053616,-500.0,0.00022186,2]
[311518501,1705173053625,-508.4910008,0.00022186,2]
[311518502,1705173053634,-1000.0,0.00022186,2]
[311518503,1705173053644,-500.0,0.00022186,2]
[311518504,1705173053653,-500.0,0.00022186,2]
[311518505,1705173053662,-500.0,0.00022186,2]
[311518506,1705173053671,-500.0,0.00022186,2]
[311518507,1705173053681,-500.0,0.00022186,2]
[311518508,1705173053690,-500.0,0.00022186,2]
[311518509,1705173053700,-500.0,0.00022186,2]
[311518510,1705173053709,-500.0,0.00022186,2]
[311518511,1705173053718,-500.0,0.00022186,2]
[311518512,1705173053729,-500.0,0.00022186,2]
[311518513,1705173053740,-500.0,0.00022186,2]
[311518514,1705173053750,-500.0,0.00022186,2]
[311518515,1705173053759,-500.0,0.00022186,2]
[311518516,1705173053768,-500.0,0.00022186,2]
[311518517,1705173053779,-500.0,0.00022186,2]
[311518518,1705173053789,-500.0,0.00022186,2]
[311518519,1705173053799,-500.0,0.00022186,2]
[311518520,1705173053808,-501.18149414,0.00022186,2]
[311518521,1705173053818,-500.0,0.00022186,2]
[311518522,1705173053827,-208.3980143,0.00022186,2]
[311518523,1705173053836,-500.0,0.00022186,2]
[311518524,1705173053847,-229.44,0.00022186,2]
[311518525,1705173053859,-500.0,0.00022186,2]
[311518526,1705173053923,-500.0,0.00022186,2]
[311518527,1705173053934,-500.0,0.00022186,2]
[311518528,1705173053943,-500.0,0.00022186,2]
[311518529,1705173053952,-285.42884583,0.00022186,2]
[311518530,1705173053962,-500.0,0.00022186,2]
[311518531,1705173053972,-500.0,0.00022186,2]
[311518532,1705173053981,-500.0,0.00022186,2]
[311518533,1705173053991,-500.0,0.00022186,2]
[311518534,1705173054000,-500.0,0.00022186,2]
[311518535,1705173054010,-500.0,0.00022186,2]
[311518536,1705173054020,-500.0,0.00022186,2]
[311518537,1705173054032,-500.0,0.00022186,2]
[311518538,1705173054042,-500.0,0.00022186,2]
[311518539,1705173054054,-509.84529026,0.00022186,2]
[311518540,1705173054064,-500.0,0.00022186,2]
[311518541,1705173054075,-500.0,0.00022186,2]
[311518542,1705173054085,-500.0,0.00022186,2]
[311518543,1705173054095,-500.0,0.00022186,2]
[311518544,1705173054105,-598.98310455,0.00022186,2]
[311518545,1705173054115,-500.0,0.00022186,2]
[311518546,1705173054125,-500.0,0.00022186,2]
[311518547,1705173054134,-500.0,0.00022186,2]
[311518548,1705173054144,-500.0,0.00022186,2]
[311518549,1705173054153,-500.0,0.00022186,2]
[311518550,1705173054163,-500.0,0.00022186,2]
[311518551,1705173054173,-500.0,0.00022186,2]
[311518552,1705173054182,-207.67357977,0.00022186,2]
[311518553,1705173054192,-500.0,0.00022186,2]
[311518554,1705173054201,-500.0,0.00022186,2]
[311518555,1705173054211,-500.0,0.00022186,2]
[311518556,1705173054220,-500.0,0.00022186,2]
[311518557,1705173054230,-500.0,0.00022186,2]
[311518558,1705173054239,-500.0,0.00022186,2]
[311518559,1705173054250,-500.0,0.00022186,2]
[311518560,1705173054259,-500.0,0.00022186,2]
[311518561,1705173054269,-500.0,0.00022186,2]
[311518562,1705173054279,-500.0,0.00022186,2]
[311518563,1705173054288,-500.0,0.00022186,2]
[311518564,1705173054297,-500.0,0.00022186,2]
[311518565,1705173054307,-500.0,0.00022186,2]
[311518566,1705173054316,-183.58820831,0.00022186,2]
[311518567,1705173054326,-500.0,0.00022186,2]
[311518568,1705173054335,-500.0,0.00022186,2]
[311518569,1705173054345,-500.0,0.00022186,2]
[311518570,1705173054354,-500.0,0.00022186,2]
[311518571,1705173054364,-500.0,0.00022186,2]
[311518572,1705173054373,-500.0,0.00022186,2]
[311518573,1705173054383,-500.0,0.00022186,2]
[311518574,1705173054394,-500.0,0.00022186,2]
[311518575,1705173054403,-500.0,0.00022186,2]
[311518576,1705173054412,-500.0,0.00022187,2]
[311518577,1705173054421,-505.16228599,0.00022187,2]
[311518578,1705173054431,-500.0,0.00022187,2]
[311518579,1705173054440,-500.0,0.00022187,2]
[311518580,1705173054449,-500.0,0.00022187,2]
[311518581,1705173054459,-500.0,0.00022187,2]
[311518582,1705173054469,-527.06496648,0.00022187,2]
[311518583,1705173054479,-500.0,0.00022187,2]
[311518584,1705173054488,-615.25565714,0.00022187,2]
[311518585,1705173054497,-500.0,0.00022187,2]
[311518586,1705173054507,-500.0,0.00022187,2]
[311518587,1705173054516,-500.0,0.00022187,2]
[311518588,1705173054525,-500.0,0.00022187,2]
[311518589,1705173054534,-500.0,0.00022187,2]
[311518590,1705173054543,-500.0,0.00022187,2]
[311518591,1705173054553,-500.0,0.00022187,2]
[311518592,1705173054563,-2189.14,0.00022187,2]
[311518593,1705173054572,-2189.14,0.00022187,2]
[311518594,1705173054581,-2189.14,0.00022187,2]
[311518595,1705173054591,-2189.14,0.00022187,2]
[311518596,1705173054600,-500.0,0.00022187,2]
[311518597,1705173054609,-500.0,0.00022187,2]
[311518598,1705173054619,-500.0,0.00022187,2]
[311518599,1705173054629,-500.0,0.00022187,2]
[311518600,1705173054638,-509.14341087,0.00022187,2]
[311518601,1705173054647,-500.0,0.00022187,2]
[311518602,1705173054656,-500.0,0.00022187,2]
[311518603,1705173054665,-500.0,0.00022187,2]
[311518604,1705173054675,-500.0,0.00022187,2]
[311518605,1705173054684,-535.24469816,0.00022187,2]
[311518606,1705173054693,-500.0,0.00022187,2]
[311518607,1705173054702,-500.0,0.00022187,2]
[311518608,1705173054711,-500.0,0.00022187,2]
[311518609,1705173054720,-500.0,0.00022187,2]
[311518610,1705173054730,-500.0,0.00022187,2]
[311518611,1705173054739,-500.0,0.00022187,2]
[311518612,1705173054748,-500.0,0.00022187,2]
[311518613,1705173054758,-500.0,0.00022187,2]
[311518614,1705173054767,-500.0,0.00022187,2]
[311518615,1705173054777,-500.0,0.00022187,2]
[311518616,1705173054786,-500.0,0.00022187,2]
[311518617,1705173054795,-500.0,0.00022187,2]
[311518618,1705173054804,-500.0,0.00022187,2]
[311518619,1705173054814,-500.0,0.00022187,2]
[311518620,1705173054823,-500.0,0.00022187,2]
[311518621,1705173054833,-642.79,0.00022187,2]
[311518622,1705173054842,-500.0,0.00022187,2]
[311518623,1705173054851,-500.0,0.00022187,2]
[311518624,1705173054860,-500.0,0.00022187,2]
[311518625,1705173054869,-504.30086497,0.00022187,2]
[311518626,1705173054878,-500.0,0.00022187,2]
[311518627,1705173054887,-506.26461892,0.00022187,2]
[311518628,1705173054896,-500.0,0.00022187,2]
[311518629,1705173054905,-500.0,0.00022187,2]
[311518630,1705173054914,-500.0,0.00022187,2]
[311518631,1705173054923,-518.21403904,0.00022187,2]
[311518632,1705173054932,-549.33,0.00022187,2]
[311518633,1705173054941,-500.0,0.00022187,2]
[311518634,1705173054950,-434.09,0.00022187,2]
[311518635,1705173054959,-500.0,0.00022187,2]
[311518636,1705173054968,-500.0,0.00022187,2]
[311518637,1705173054977,-511.25833359,0.00022187,2]
[311518638,1705173054986,-500.0,0.00022187,2]
[311518639,1705173054996,-500.0,0.00022187,2]
[311518640,1705173055006,-500.0,0.00022187,2]
[311518641,1705173055015,-500.0,0.00022187,2]
[311518642,1705173055024,-503.91676493,0.00022187,2]
[311518643,1705173055034,-500.0,0.00022187,2]
[311518644,1705173055043,-500.0,0.00022187,2]
[311518645,1705173055052,-585.8,0.00022187,2]
[311518646,1705173055061,-585.8,0.00022187,2]
[311518647,1705173055071,-585.8,0.00022187,2]
[311518648,1705173055080,-585.8,0.00022187,2]
[311518649,1705173055089,-610.00013813,0.00022187,2]
[311518650,1705173055098,-500.0,0.00022187,2]
[311518651,1705173055107,-500.0,0.00022187,2]
[311518652,1705173055116,-500.0,0.00022187,2]
[311518653,1705173055125,-500.0,0.00022187,2]
[311518654,1705173055134,-500.0,0.00022187,2]
[311518655,1705173055143,-500.0,0.00022187,2]
[311518656,1705173055152,-500.0,0.00022187,2]
[311518657,1705173055161,-500.0,0.00022187,2]
[311518658,1705173055170,-500.0,0.00022187,2]
[311518659,1705173055179,-500.0,0.00022187,2]
[311518660,1705173055188,-500.0,0.00022187,2]
[311518661,1705173055198,-500.0,0.00022187,2]
[311518662,1705173055207,-361.11356282,0.00022187,2]
[311518663,1705173055216,-500.0,0.00022187,2]
[311518664,1705173055225,-514.81194423,0.00022187,2]
[311518665,1705173055235,-500.0,0.00022187,2]
[311518666,1705173055245,-500.0,0.00022187,2]
[311518667,1705173055254,-500.0,0.00022187,2]
[311518668,1705173055263,-500.0,0.00022187,2]
[311518669,1705173055272,-500.0,0.00022187,2]
[311518670,1705173055283,-500.0,0.00022187,2]
[311518671,1705173055292,-500.0,0.00022187,2]
[311518672,1705173055302,-500.0,0.00022187,2]
[311518673,1705173055311,-500.0,0.00022187,2]
[311518674,1705173055320,-500.0,0.00022187,2]
[311518675,1705173055329,-500.0,0.00022187,2]
[311518676,1705173055338,-500.0,0.00022187,2]
[311518677,1705173055348,-314.93766607,0.00022187,2]
[311518678,1705173055357,-504.18092797,0.00022187,2]
[311518679,1705173055366,-500.0,0.00022187,2]
[311518680,1705173055376,-500.0,0.00022187,2]
[311518681,1705173055387,-500.0,0.00022187,2]
[311518682,1705173055398,-500.0,0.00022187,2]
[311518683,1705173055407,-500.0,0.00022187,2]
[311518684,1705173055416,-500.0,0.00022187,2]
[311518685,1705173055425,-500.0,0.00022187,2]
[311518686,1705173055436,-500.0,0.00022187,2]
[311518687,1705173055445,-500.0,0.00022187,2]
[311518688,1705173055455,-503.56424176,0.00022187,2]
[311518689,1705173055466,-500.0,0.00022187,2]
[311518690,1705173055476,-500.0,0.00022187,2]
[311518691,1705173055485,-573.83,0.00022187,2]
[311518692,1705173055494,-500.0,0.00022187,2]
[311518693,1705173055504,-583.56943669,0.00022187,2]
[311518694,1705173055513,-502.62755103,0.00022187,2]
[311518695,1705173055523,-500.0,0.00022187,2]
[311518696,1705173055532,-500.0,0.00022187,2]
[311518697,1705173055541,-500.0,0.00022187,2]
[311518698,1705173055550,-500.0,0.00022187,2]
[311518699,1705173055559,-300.3352946,0.00022187,2]
[311518700,1705173055568,-500.0,0.00022187,2]
[311518701,1705173055580,-500.0,0.00022187,2]
[311518702,1705173055589,-500.0,0.00022187,2]
[311518703,1705173055599,-438.96204491,0.00022187,2]
[311518704,1705173055608,-500.0,0.00022187,2]
[311518705,1705173055618,-500.0,0.00022187,2]
[311518706,1705173055627,-500.0,0.00022187,2]
[311518707,1705173055636,-500.0,0.00022187,2]
[311518708,1705173055646,-500.0,0.00022187,2]
[311518709,1705173055655,-500.0,0.00022187,2]
[311518710,1705173055664,-500.0,0.00022187,2]
[311518711,1705173055674,-500.0,0.00022187,2]
[311518712,1705173055683,-513.29141313,0.00022187,2]
[311518713,1705173055692,-506.8568601,0.00022187,2]
[311518714,1705173055702,-500.0,0.00022187,2]
[311518715,1705173055712,-500.0,0.00022187,2]
[311518716,1705173055721,-500.0,0.00022187,2]
[311518717,1705173055730,-500.0,0.00022187,2]
[311518718,1705173055740,-500.0,0.00022187,2]
[311518719,1705173055749,-500.0,0.00022188,2]
[311518720,1705173055759,-1755.51,0.00022189,2]
[311518721,1705173055768,-500.0,0.00022189,2]
[311518722,1705173055779,-1112.82,0.00022189,2]
[311518723,1705173055788,-500.0,0.00022189,2]
[311518724,1705173055797,-500.0,0.00022189,2]
[311518725,1705173055806,-309.04,0.00022189,2]
[311518726,1705173055815,-600.99039536,0.0002219,2]
[311518727,1705173055825,-500.0,0.0002219,2]
[311518728,1705173055834,-500.0,0.0002219,2]
[311518729,1705173055843,-500.0,0.0002219,2]
[311518730,1705173055852,-191.61292968,0.0002219,2]
[311518731,1705173055862,-500.0,0.0002219,2]
[311518732,1705173055871,-1000.0,0.0002219,2]
[311518733,1705173055880,-500.0,0.0002219,2]
[311518734,1705173055889,-313.91596697,0.0002219,2]
[311518735,1705173055899,-502.07511206,0.0002219,2]
[311518736,1705173055908,-500.0,0.0002219,2]
[311518737,1705173055917,-500.0,0.0002219,2]
[311518738,1705173055926,-500.0,0.0002219,2]
[311518739,1705173055935,-500.0,0.0002219,2]
[311518740,1705173055944,-160.90111274,0.0002219,2]
[311518741,1705173055953,-500.0,0.0002219,2]
[311518742,1705173055962,-501.98323818,0.0002219,2]
[311518743,1705173055971,-500.0,0.0002219,2]
[311518744,1705173055981,-500.0,0.0002219,2]
[311518745,1705173055990,-502.72596285,0.0002219,2]
[311518746,1705173056001,-500.0,0.0002219,2]
[311518747,1705173056010,-500.0,0.0002219,2]
[311518748,1705173056020,-500.0,0.0002219,2]
[311518749,1705173056029,-500.0,0.0002219,2]
[311518750,1705173056038,-500.0,0.0002219,2]
[311518751,1705173056048,-500.0,0.0002219,2]
[311518752,1705173056057,-500.0,0.0002219,2]
[311518753,1705173056066,-406.82,0.0002219,2]
[311518754,1705173056076,-500.0,0.00022195,2]
[311518755,1705173056085,-2189.14,0.00022195,2]
[311518756,1705173056094,-418.09,0.00022195,2]
[311518757,1705173056104,-500.0,0.00022195,2]
[311518758,1705173056113,-534.69224157,0.00022195,2]
[311518759,1705173056123,-585.8,0.00022195,2]
[311518760,1705173056133,-500.0,0.00022195,2]
[311518761,1705173056142,-500.0,0.00022195,2]
[311518762,1705173056151,-500.0,0.00022195,2]
[311518763,1705173056161,-500.0,0.00022195,2]
[311518764,1705173056170,-1243.02,0.00022195,2]
[311518765,1705173056180,-500.0,0.00022195,2]
[311518766,1705173056189,-48364.8761,0.00022196,2]
[311518767,1705173056199,-509.64,0.000222,2]
[311518768,1705173056208,-379.69,0.00022212,2]
[311518769,1705173056217,-283.58547597,0.00022222,2]
[311518770,1705173056227,-599.9080935,0.00022244,2]
[311518771,1705173056236,-845.02,0.00022256,2]
[311518772,1705173056245,-155.51,0.00022258,2]
[311518773,1705173056254,-168.94,0.00022272,2]
[311518774,1705173056264,-2418.63637841,0.00022273,2]
[311518775,1705173056273,-4300.1859,0.00022296,2]
[311518776,1705173056283,-47332.5326,0.00022296,2]
[311518777,1705173056292,-19283.14673178,0.00022296,2]
[311518778,1705173056302,-379.69,0.00022326,2]
[311518779,1705173056311,-2000.0,0.00022349,2]
[311518780,1705173056321,-200.0,0.00022349,2]
[311518781,1705173056330,-845.02,0.00022367,2]
[311518782,1705173056339,-207.6186378,0.00022395,2]
[311518783,1705173056364,-155.0,0.00022395,2]
[311518784,1705173056374,-155.49312417,0.00022395,2]
[311518785,1705173056385,-155.42608998,0.00022395,2]
[311518786,1705173056397,-499.97609242,0.00022395,2]
[311518787,1705173056407,-163.80743956,0.00022395,2]
[311518788,1705173056416,-506.05,0.00022395,2]
[311518789,1705173056425,-500.0,0.00022395,2]
[311518790,1705173056435,-500.0,0.00022395,2]
[311518791,1705173056444,-500.0,0.00022395,2]
[311518792,1705173056454,-1541.25,0.00022395,2]
[311518793,1705173056463,-193.6,0.00022395,2]
[311518794,1705173056473,-500.0,0.00022395,2]
[311518795,1705173056483,-717.01,0.00022395,2]
[311518796,1705173056493,-500.0,0.00022395,2]
[311518797,1705173056503,-2418.63637841,0.00022398,2]
[311518798,1705173056513,-500.0,0.00022399,2]
[311518799,1705173056523,-500.0,0.00022399,2]
[311518800,1705173056533,-500.0,0.00022399,2]
[311518801,1705173056543,-2189.14,0.00022399,2]
[311518802,1705173056553,-500.0,0.00022399,2]
[311518803,1705173056562,-585.8,0.00022399,2]
[311518804,1705173056572,-500.0,0.00022399,2]
[311518805,1705173056582,-500.0,0.00022399,2]
[311518806,1705173056591,-500.0,0.00022399,2]
[311518807,1705173056601,-220.27851782,0.00022399,2]
[311518808,1705173056611,-1755.51,0.00022399,2]
[311518809,1705173056621,-500.0,0.00022399,2]
[311518810,1705173056631,-1112.82,0.00022399,2]
[311518811,1705173056641,-500.0,0.00022399,2]
[311518812,1705173056651,-500.0,0.00022399,2]
[311518813,1705173056661,-500.0,0.00022399,2]
[311518814,1705173056671,-129236.66967931,0.000224,2]
[311518815,1705173056681,-1243.02,0.00022406,2]
[311518816,1705173056691,-2189.14,0.00022407,2]
[311518817,1705173056700,-500.0,0.00022407,2]
[311518818,1705173056710,-585.8,0.00022407,2]
[311518819,1705173056720,-500.0,0.00022407,2]
[311518820,1705173056729,-500.0,0.00022407,2]
[311518821,1705173056739,-500.0,0.00022407,2]
[311518822,1705173056749,-500.0,0.00022407,2]
[311518823,1705173056759,-1541.25,0.00022407,2]
[311518824,1705173056769,-368.14,0.00022407,2]
[311518825,1705173056779,-1755.51,0.00022407,2]
[311518826,1705173056789,-717.01,0.00022407,2]
[311518827,1705173056799,-500.0,0.00022407,2]
[311518828,1705173056809,-1112.82,0.00022407,2]
[311518829,1705173056818,-500.0,0.00022407,2]
[311518830,1705173056828,-500.0,0.00022407,2]
[311518831,1705173056837,-500.0,0.00022407,2]
[311518832,1705173056847,-500.0,0.00022407,2]
[311518833,1705173056857,-200000.0,0.00022408,2]
[311518834,1705173056867,-509.64,0.00022412,2]
[311518835,1705173056876,-155.51,0.00022416,2]
[311518836,1705173056886,-379.69,0.00022441,2]
[311518837,1705173056897,-599.9080935,0.00022463,2]
[311518838,1705173056906,-845.02,0.00022478,2]
[311518839,1705173056916,-19110.28636174,0.000225,2]
[311518840,1705173056926,-2418.63637841,0.00022524,2]
[311518841,1705173056935,-379.69,0.00022555,2]
[311518842,1705173056945,-300.0,0.0002256,2]
[311518843,1705173056955,-2000.0,0.00022573,2]
[311518844,1705173056965,-200.0,0.00022573,2]
[311518845,1705173056975,-845.02,0.0002259,2]
[311518846,1705173056985,-296.03338572,0.0002261,2]
[311518847,1705173056994,-509.64,0.00022623,2]
[311518848,1705173057003,-2418.63637841,0.00022649,2]
[311518849,1705173057013,-7609.99366387,0.0002267,3]
[311518850,1705173057022,-379.69,0.0002267,2]
[311518851,1705173057033,-599.9080935,0.00022681,2]
[311518852,1705173057043,-250.0,0.00022699,2]
[311518853,1705173057053,-1243.02,0.00022699,2]
[311518854,1705173057062,-417.95,0.000227,2]
[311518855,1705173057071,-660.74,0.000227,2]
[311518856,1705173057081,-150.0,0.000227,2]
[311518857,1705173057090,-405.83,0.000227,2]
[311518858,1705173057100,-301.93,0.000227,2]
[311518859,1705173057109,-1214.41,0.000227,2]
[311518860,1705173057119,-401.27,0.000227,2]
[311518861,1705173057129,-401.27,0.000227,2]
[311518862,1705173057138,-420.67,0.000227,2]
[311518863,1705173057148,-150.0,0.000227,2]
[311518864,1705173057157,-150.0,0.000227,2]
[311518865,1705173057167,-150.0,0.000227,2]
[311518866,1705173057176,-408.12,0.000227,2]
[311518867,1705173057185,-408.12,0.000227,2]
[311518868,1705173057195,-640.48,0.000227,2]
[311518869,1705173057205,-294.03,0.000227,2]
[311518870,1705173057214,-408.12,0.000227,2]
[311518871,1705173057224,-294.03,0.000227,2]
[311518872,1705173057234,-408.12,0.000227,2]
[311518873,1705173057244,-150.0,0.000227,2]
[311518874,1705173057254,-150.0,0.000227,2]
[311518875,1705173057264,-150.0,0.000227,2]
[311518876,1705173057273,-150.0,0.000227,2]
[311518877,1705173057285,-150.0,0.000227,2]
[311518878,1705173057295,-150.0,0.000227,2]
[311518879,1705173057305,-150.0,0.000227,2]
[311518880,1705173057315,-150.0,0.000227,2]
[311518881,1705173057325,-150.0,0.000227,2]
[311518882,1705173057334,-150.0,0.000227,2]
[311518883,1705173057344,-150.0,0.000227,2]
[311518884,1705173057353,-150.0,0.000227,2]
[311518885,1705173057363,-150.0,0.000227,2]
[311518886,1705173057373,-150.0,0.000227,2]
[311518887,1705173057384,-150.0,0.000227,2]
[311518888,1705173057395,-358.53,0.000227,2]
[311518889,1705173057405,-150.0,0.000227,2]
[311518890,1705173057414,-150.0,0.000227,2]
[311518891,1705173057423,-150.0,0.000227,2]
[311518892,1705173057434,-843.49,0.000227,2]
[311518893,1705173057444,-264.79,0.000227,2]
[311518894,1705173057454,-940.21,0.000227,2]
[311518895,1705173057464,-802.54,0.000227,2]
[311518896,1705173057474,-845.02,0.00022701,2]
[311518897,1705173057485,-500.0,0.00022769,2]
[311518898,1705173057495,-508.1,0.00022769,2]
[311518899,1705173057505,-715.32,0.00022769,2]
[311518900,1705173057514,-2418.63637841,0.00022775,2]
[311518901,1705173057524,-379.69,0.00022784,2]
[311518902,1705173057535,-401.27,0.00022795,2]
[311518903,1705173057545,-1755.77667615,0.00022799,2]
[311518904,1705173057555,-200.0,0.00022799,2]
[311518905,1705173057564,-2189.14,0.00022799,2]
[311518906,1705173057574,-2189.14,0.00022799,2]
[311518907,1705173057583,-585.8,0.00022799,2]
[311518908,1705173057593,-585.8,0.00022799,2]
[311518909,1705173057603,-500.0,0.00022799,2]
[311518910,1705173057613,-500.0,0.00022799,2]
[311518911,1705173057622,-500.0,0.00022799,2]
[311518912,1705173057632,-500.0,0.00022799,2]
[311518913,1705173057641,-500.0,0.00022799,2]
[311518914,1705173057651,-462.87307654,0.00022799,2]
[311518915,1705173057661,-500.0,0.00022799,2]
[311518916,1705173057670,-500.0,0.00022799,2]
[311518917,1705173057681,-1541.25,0.00022799,2]
[311518918,1705173057692,-1541.25,0.00022799,2]
[311518919,1705173057703,-1755.51,0.00022799,2]
[311518920,1705173057713,-1755.51,0.00022799,2]
[311518921,1705173057723,-717.01,0.00022799,2]
[311518922,1705173057733,-717.01,0.00022799,2]
[311518923,1705173057743,-500.0,0.00022799,2]
[311518924,1705173057752,-500.0,0.00022799,2]
[311518925,1705173057762,-1112.82,0.00022799,2]
[311518926,1705173057772,-1112.82,0.00022799,2]
[311518927,1705173057784,-500.0,0.00022799,2]
[311518928,1705173057795,-500.0,0.00022799,2]
[311518929,1705173057805,-500.0,0.00022799,2]
[311518930,1705173057815,-500.0,0.00022799,2]
[311518931,1705173057826,-1243.02,0.00022799,2]
[311518932,1705173057840,-1243.02,0.00022799,2]
[311518933,1705173057851,-500.0,0.00022799,2]
[311518934,1705173057862,-500.0,0.00022799,2]
[311518935,1705173057872,-505167.17128526,0.000228,2]
[311518936,1705173057882,-845.02,0.00022812,2]
[311518937,1705173057892,-509.64,0.00022834,2]
[311518938,1705173057902,-379.69,0.00022899,2]
[311518939,1705173057912,-599.9080935,0.000229,2]
[311518940,1705173057922,-845.02,0.00022924,2]
[311518941,1705173057932,-168.94,0.00022949,2]
[311518942,1705173057942,-513.37,0.00022979,2]
[311518943,1705173057954,-500.0,0.00022979,2]
[311518944,1705173057963,-1541.25,0.00022979,2]
[311518945,1705173057974,-1755.51,0.00022979,2]
[311518946,1705173057984,-717.01,0.00022979,2]
[311518947,1705173057994,-500.0,0.00022979,2]
[311518948,1705173058004,-1112.82,0.00022979,2]
[311518949,1705173058014,-375.46808141,0.00022979,2]